bitfinex-derivatives/quotes_BTCF0:USTF0_20250614
["timestamp","ask_amount","ask_price","bid_price","bid_amount"]
[1749938522237,0.00801794,105440.0,105430.0,1.86589686]
[1749938522537,0.0956,105450.0,105440.0,0.1895965]
[1749938522747,0.38254024,105470.0,105460.0,0.1895605]
[1749938522940,0.214435,105470.0,105460.0,1.61584296]
[1749938523245,0.214435,105470.0,105460.0,0.82920296]
[1749938523545,0.4039775,105470.0,105460.0,0.5503605]
[1749938523844,0.4039775,105470.0,105460.0,1.3370005]
[1749938524736,0.4089775,105470.0,105460.0,1.3370005]
[1749938525348,0.4139775,105470.0,105460.0,1.3370005]
[1749938526144,0.4139775,105470.0,105460.0,0.5503605]
[1749938526339,0.2955425,105470.0,105460.0,0.5503605]
[1749938529833,0.106,105470.0,105460.0,0.5503605]
[1749938533339,0.224435,105470.0,105460.0,0.5503605]
[1749938534744,0.4139778,105470.0,105460.0,0.5503605]
[1749938535249,0.4139778,105470.0,105460.0,0.1895605]
[1749938535448,0.4139778,105470.0,105460.0,0.5503605]
[1749938539049,0.6009778,105470.0,105460.0,0.5503605]
[1749938539355,0.411435,105470.0,105460.0,0.5503605]
[1749938541051,0.224435,105470.0,105460.0,0.5503605]
[1749938541456,0.224435,105470.0,105460.0,0.59220839]
[1749938541954,0.106,105470.0,105460.0,0.59220839]
[1749938542157,0.09856699,105470.0,105460.0,0.87105085]
[1749938542342,0.09856699,105470.0,105460.0,0.93385085]
[1749938542543,0.01,105470.0,105460.0,0.93385085]
[1749938542847,0.01,105470.0,105460.0,0.1895605]
[1749938543048,0.66355215,105470.0,105460.0,0.1895605]
[1749938543256,0.19516699,105470.0,105460.0,0.1895605]
[1749938543450,0.08856699,105470.0,105460.0,0.82920296]
[1749938543644,0.08870954,105480.0,105470.0,0.1895427]
[1749938543848,0.00014255,105480.0,105470.0,1.09712954]
[1749938544053,0.00935464,105490.0,105480.0,0.1895247]
[1749938544243,0.38584344,105500.0,105490.0,0.1895067]
[1749938544445,0.4776859,105500.0,105490.0,0.5503067]
[1749938544652,0.5081859,105500.0,105490.0,0.5503067]
[1749938545253,0.03985464,105500.0,105490.0,0.5503067]
[1749938545455,0.22934344,105500.0,105490.0,0.5503067]
[1749938545654,0.5131859,105500.0,105490.0,0.5503067]
[1749938545852,0.5181859,105500.0,105490.0,0.5503067]
[1749938546253,0.4876859,105500.0,105490.0,0.5503067]
[1749938546450,0.01935464,105500.0,105490.0,0.89184916]
[1749938546655,0.01,105500.0,105490.0,0.89184916]
[1749938550161,0.01,105500.0,105490.0,1.86556916]
[1749938551056,0.03304255,105510.0,105490.0,1.86556916]
[1749938551057,5e-08,105510.0,105500.0,0.1894887]
[1749938551358,5e-08,105510.0,105500.0,0.94346296]
[1749938551761,5e-08,105510.0,105500.0,0.6646205]
[1749938551958,5e-08,105510.0,105500.0,1.91722296]
[1749938552559,5e-08,105510.0,105500.0,1.92652673]
[1749938552958,5e-08,105510.0,105500.0,0.95276673]
[1749938553160,5e-08,105510.0,105500.0,0.8515805]
[1749938553461,5e-08,105510.0,105500.0,1.91758296]
[1749938553950,5e-08,105510.0,105500.0,1.92675245]
[1749938554667,5e-08,105510.0,105500.0,1.93275245]
[1749938555160,5e-08,105510.0,105500.0,1.93675245]
[1749938556260,5e-08,105510.0,105500.0,2.03153645]
[1749938557562,5e-08,105510.0,105500.0,2.03133645]
[1749938557762,5e-08,105510.0,105500.0,2.03333645]
[1749938558064,5e-08,105510.0,105500.0,2.03433645]
[1749938558454,5e-08,105510.0,105500.0,2.03405645]
[1749938560860,5e-08,105510.0,105500.0,2.29405645]
[1749938561062,5e-08,105510.0,105500.0,2.64405645]
[1749938561558,5e-08,105510.0,105500.0,2.63905645]
[1749938561758,5e-08,105510.0,105500.0,2.64505645]
[1749938561961,5e-08,105510.0,105500.0,1.67141645]
[1749938562170,5e-08,105510.0,105500.0,2.64521645]
[1749938562362,5e-08,105510.0,105500.0,2.63721645]
[1749938562563,5e-08,105510.0,105500.0,2.64721645]
[1749938563868,5e-08,105510.0,105500.0,2.64693645]
[1749938564258,5e-08,105510.0,105500.0,2.39693645]
[1749938564460,5e-08,105510.0,105500.0,2.11809399]
[1749938564760,5e-08,105510.0,105500.0,2.39693645]
[1749938564957,0.0305,105540.0,105530.0,0.1894349]
[1749938565159,0.54749206,105550.0,105540.0,0.189417]
[1749938565364,0.61139206,105550.0,105540.0,0.976537]
[1749938565563,0.2851997,105550.0,105540.0,0.976537]
[1749938565765,0.56404216,105550.0,105540.0,1.337337]
[1749938566071,0.56404216,105550.0,105540.0,0.976537]
[1749938566868,0.92484216,105550.0,105540.0,0.189417]
[1749938567164,1.07851788,105550.0,105540.0,0.18017612]
[1749938567670,0.4720797,105550.0,105540.0,0.18017612]
[1749938567867,0.4720797,105550.0,105540.0,0.18217612]
[1749938568161,1.11172216,105550.0,105540.0,0.18617612]
[1749938568464,1.17065388,105550.0,105540.0,0.18617612]
[1749938570269,0.89181142,105550.0,105540.0,0.18617612]
[1749938570471,1.17065388,105550.0,105540.0,0.18617612]
[1749938571269,1.25877517,105550.0,105540.0,0.18617612]
[1749938572257,1.19984345,105550.0,105540.0,0.18617612]
[1749938572767,0.92100099,105550.0,105540.0,0.18617612]
[1749938572965,1.19984345,105550.0,105540.0,0.18617612]
[1749938573162,1.20646616,105550.0,105540.0,0.18617612]
[1749938574068,1.20646616,105550.0,105540.0,0.195417]
[1749938574275,1.10728344,105550.0,105540.0,0.195417]
[1749938576276,1.22526708,105550.0,105540.0,0.195417]
[1749938576867,2.01170708,105550.0,105540.0,0.195417]
[1749938578085,2.01130708,105550.0,105540.0,0.195417]
[1749938580276,1.91656308,105550.0,105540.0,0.195417]
[1749938580575,0.94112338,105550.0,105540.0,0.195417]
[1749938580775,1.13052238,105550.0,105540.0,0.195417]
[1749938582483,0.94364238,105550.0,105540.0,0.195417]
[1749938582687,1.13164238,105550.0,105540.0,0.195417]
[1749938583682,0.77084238,105550.0,105540.0,0.195417]
[1749938585290,0.58144338,105550.0,105540.0,0.195417]
[1749938585480,0.58144338,105550.0,105540.0,0.226417]
[1749938585886,0.40178364,105550.0,105540.0,0.587217]
[1749938586493,0.58144338,105550.0,105540.0,0.587217]
[1749938586893,0.39344338,105550.0,105540.0,0.587217]
[1749938589597,0.36214338,105550.0,105540.0,0.775217]
[1749938589798,0.18248364,105550.0,105540.0,0.805417]
[1749938590398,0.36214338,105550.0,105540.0,0.805417]
[1749938591897,0.11798364,105550.0,105540.0,0.805417]
[1749938594797,0.77418538,105560.0,105550.0,0.1893991]
[1749938595000,0.77418538,105560.0,105550.0,0.5818991]
[1749938596108,0.77418538,105560.0,105550.0,0.5828991]
[1749938596301,0.59452564,105560.0,105550.0,0.5848991]
[1749938596501,0.77418538,105560.0,105550.0,0.5848991]
[1749938596698,1.13498538,105560.0,105550.0,0.1923991]
[1749938597005,1.13498538,105560.0,105550.0,0.003]
[1749938597194,0.1893991,105550.0,105540.0,0.2841049]
[1749938597498,0.55166993,105550.0,105540.0,0.2841049]
[1749938597702,1.70046993,105550.0,105540.0,0.2841049]
[1749938597892,1.70046993,105550.0,105540.0,0.2367538]
[1749938598098,0.189417,105540.0,105530.0,0.28428065]
[1749938598411,1.01233674,105540.0,105530.0,0.23692345]
[1749938598705,1.10708874,105540.0,105530.0,0.23692345]
[1749938598894,1.25456829,105540.0,105530.0,0.23692345]
[1749938599090,1.07490855,105540.0,105530.0,0.23692345]
[1749938599295,1.10708874,105540.0,105530.0,0.23992345]
[1749938599500,0.927429,105540.0,105530.0,0.23992345]
[1749938599794,1.90412874,105540.0,105530.0,0.24592345]
[1749938599999,2.02242875,105540.0,105530.0,0.24592345]
[1749938602700,1.90412874,105540.0,105530.0,0.19856625]
[1749938602901,1.724469,105540.0,105530.0,0.19856625]
[1749938603108,0.1894529,105520.0,105510.0,0.2841916]
[1749938603397,0.1894709,105510.0,105500.0,0.3315821]
[1749938603607,0.91190923,105510.0,105500.0,0.3315821]
[1749938604300,0.91190923,105510.0,105500.0,0.3633821]
[1749938604502,0.03668049,105510.0,105500.0,1.24862584]
[1749938604696,0.00014255,105520.0,105510.0,0.1894709]
[1749938604892,0.00014255,105520.0,105510.0,0.79183064]
[1749938607096,0.00014255,105520.0,105510.0,0.79683064]
[1749938607898,0.00014255,105520.0,105510.0,0.82993064]
[1749938610303,0.00014255,105520.0,105510.0,0.6502709]
[1749938610494,0.00014255,105520.0,105510.0,0.82993064]
[1749938610902,0.00014255,105520.0,105510.0,1.02097064]
[1749938615401,5e-08,105520.0,105510.0,1.02097064]
[1749938615810,5e-08,105520.0,105510.0,1.06496591]
[1749938616403,5e-08,105520.0,105510.0,1.15974191]
[1749938616804,5e-08,105520.0,105510.0,1.49974191]
[1749938617903,5e-08,105520.0,105510.0,1.15974191]
[1749938618314,5e-08,105520.0,105510.0,1.21824335]
[1749938618703,5e-08,105520.0,105510.0,1.23824335]
[1749938623111,5e-08,105520.0,105510.0,1.14346735]
[1749938623411,5e-08,105520.0,105510.0,1.08496591]
[1749938623609,5e-08,105520.0,105510.0,1.58824335]
[1749938624708,5e-08,105520.0,105510.0,1.27824335]
[1749938626812,5e-08,105520.0,105510.0,2.07104335]
[1749938629016,5e-08,105520.0,105510.0,2.02704808]
[1749938629319,5e-08,105520.0,105510.0,2.07100661]
[1749938629511,5e-08,105520.0,105510.0,1.89134687]
[1749938629708,5e-08,105520.0,105510.0,2.07100661]
[1749938632121,5e-08,105520.0,105510.0,1.97623061]
[1749938633018,5e-08,105520.0,105510.0,1.93227208]
[1749938633815,5e-08,105520.0,105510.0,1.87377064]
[1749938634417,5e-08,105520.0,105510.0,2.02013889]
[1749938643224,5e-08,105520.0,105510.0,1.9615228]
[1749938643924,5e-08,105520.0,105510.0,1.9604028]
[1749938644315,5e-08,105520.0,105510.0,1.9654028]
[1749938644713,5e-08,105520.0,105510.0,0.9826828]
[1749938644923,5e-08,105520.0,105510.0,1.9656828]
[1749938645121,5e-08,105520.0,105510.0,1.9666828]
[1749938645322,5e-08,105520.0,105510.0,0.9836828]
[1749938645522,5e-08,105520.0,105510.0,1.9669628]
[1749938647227,5e-08,105520.0,105510.0,0.9204828]
[1749938647420,0.03130005,105520.0,105510.0,1.8714428]
[1749938647621,0.06220005,105520.0,105510.0,1.8714428]
[1749938647928,0.06220005,105520.0,105510.0,0.8886828]
[1749938648222,0.06220005,105520.0,105510.0,1.8113228]
[1749938649523,0.06220005,105520.0,105510.0,0.8286828]
[1749938649930,0.06220005,105520.0,105510.0,1.8114428]
[1749938650124,0.03130005,105520.0,105510.0,1.8114028]
[1749938650320,0.03130005,105520.0,105510.0,1.8722028]
[1749938656543,5e-08,105520.0,105510.0,1.8722028]
[1749938657346,5e-08,105520.0,105510.0,2.14186254]
[1749938657842,5e-08,105520.0,105510.0,2.11445064]
[1749938658339,5e-08,105520.0,105510.0,2.23145353]
[1749938660241,0.14777553,105540.0,105530.0,0.189435]
[1749938660445,0.00919093,105540.0,105530.0,2.17635531]
[1749938660640,0.1512226,105550.0,105540.0,0.189417]
[1749938660838,0.1512226,105550.0,105540.0,0.77389477]
[1749938661138,0.1512226,105550.0,105540.0,0.77389502]
[1749938661348,0.1512226,105550.0,105540.0,1.533377]
[1749938661642,0.1512226,105550.0,105540.0,1.54267899]
[1749938662053,0.0311,105550.0,105540.0,1.84313537]
[1749938662342,0.0311,105550.0,105540.0,0.85039701]
[1749938662544,0.0626,105550.0,105540.0,1.80175701]
[1749938663141,0.0626,105550.0,105540.0,1.77035701]
[1749938663342,0.0955,105550.0,105540.0,1.77035701]
[1749938664750,0.0955,105550.0,105540.0,1.72633873]
[1749938669658,0.0955,105550.0,105540.0,1.77035701]
[1749938670158,0.0955,105550.0,105540.0,0.78719701]
[1749938670359,0.0955,105550.0,105540.0,1.76919701]
[1749938671053,0.0955,105550.0,105540.0,1.84555944]
[1749938674257,0.0955,105550.0,105540.0,1.80154116]
[1749938675558,0.0955,105550.0,105540.0,1.83384116]
[1749938677264,0.0955,105550.0,105540.0,1.86494116]
[1749938679566,0.1841226,105550.0,105540.0,1.86494116]
[1749938681265,0.1841226,105550.0,105540.0,2.08927266]
[1749938683667,0.0955,105550.0,105540.0,2.08927266]
[1749938684570,0.0955,105550.0,105540.0,1.10727266]
[1749938684765,0.0955,105550.0,105540.0,2.08651266]
[1749938685371,0.1841226,105550.0,105540.0,2.08651266]
[1749938686665,0.1512226,105550.0,105540.0,2.08651266]
[1749938687378,0.1512226,105550.0,105540.0,2.11701266]
[1749938688369,0.1512226,105550.0,105540.0,2.16103094]
[1749938688971,0.0886226,105550.0,105540.0,2.16103094]
[1749938690372,0.14782574,105550.0,105540.0,2.16103094]
[1749938693167,0.14782574,105550.0,105540.0,0.97979532]
[1749938693363,0.14782574,105550.0,105540.0,1.95639532]
[1749938693574,0.14782574,105550.0,105540.0,1.95631532]
[1749938693773,0.14782574,105550.0,105540.0,0.97979532]
[1749938693978,0.14782574,105550.0,105540.0,1.95759532]
[1749938694174,0.0886226,105550.0,105540.0,1.95759532]
[1749938694877,0.0886226,105550.0,105540.0,1.95762673]
[1749938695177,0.1206226,105550.0,105540.0,1.95762673]
[1749938695371,0.17984723,105550.0,105540.0,1.95762673]
[1749938695577,0.1206226,105550.0,105540.0,1.95762673]
[1749938695876,0.17984669,105550.0,105540.0,1.95762673]
[1749938696077,0.17984684,105550.0,105540.0,1.95762673]
[1749938696273,0.1206226,105550.0,105540.0,1.95762673]
[1749938696475,0.1206226,105550.0,105540.0,1.92652673]
[1749938696675,0.21024591,105550.0,105540.0,1.92652673]
[1749938700868,0.35301822,105550.0,105540.0,1.57462669]
[1749938701082,0.35301822,105550.0,105540.0,1.73257262]
[1749938701385,0.1206226,105550.0,105540.0,1.19069793]
[1749938701572,0.0886226,105550.0,105540.0,2.04391793]
[1749938701772,0.0886226,105550.0,105540.0,1.87372231]
[1749938702483,0.0886226,105550.0,105540.0,2.07571793]
[1749938702875,0.0886226,105550.0,105540.0,2.07587793]
[1749938703075,0.0886226,105550.0,105540.0,1.09935793]
[1749938703377,0.0886226,105550.0,105540.0,1.85144267]
[1749938703881,0.0886226,105550.0,105540.0,1.86090417]
[1749938708284,0.0886226,105550.0,105540.0,1.07282417]
[1749938708583,0.0886226,105550.0,105540.0,1.85982417]
[1749938710486,0.14783225,105550.0,105540.0,1.85982417]
[1749938713687,0.0886226,105550.0,105540.0,1.81577448]
[1749938714685,0.0886226,105550.0,105540.0,1.81541448]
[1749938714887,0.1507226,105550.0,105540.0,1.78361448]
[1749938715389,0.3401202,105550.0,105540.0,0.619517]
[1749938715590,0.1507226,105550.0,105540.0,1.529297]
[1749938715784,0.1507226,105550.0,105540.0,0.554217]
[1749938715986,0.1507226,105550.0,105540.0,1.529257]
[1749938716382,0.1507226,105550.0,105540.0,0.554217]
[1749938716578,0.1507226,105550.0,105540.0,1.529297]
[1749938717883,0.36972944,105550.0,105540.0,1.529257]
[1749938718084,0.36972944,105550.0,105540.0,0.554217]
[1749938718279,0.36972944,105550.0,105540.0,1.340817]
[1749938720691,0.36972944,105550.0,105540.0,1.529297]
[1749938721692,0.36972944,105550.0,105540.0,1.340857]
[1749938721989,0.2514976,105550.0,105540.0,1.340857]
[1749938723087,0.26099618,105550.0,105540.0,0.554217]
[1749938723292,0.37922802,105550.0,105540.0,1.36946702]
[1749938723490,0.58127804,105550.0,105540.0,1.36946702]
[1749938723791,0.4630462,105550.0,105540.0,1.36946702]
[1749938724191,0.4630462,105550.0,105540.0,1.36746702]
[1749938724692,0.4630462,105550.0,105540.0,1.36546702]
[1749938725191,0.4630462,105550.0,105540.0,1.17810702]
[1749938725390,0.45354762,105550.0,105540.0,1.17810702]
[1749938726785,0.2514976,105550.0,105540.0,1.17810702]
[1749938726986,0.45354762,105550.0,105540.0,0.39146702]
[1749938728593,0.57177946,105550.0,105540.0,0.189417]
[1749938728991,0.93257946,105550.0,105540.0,0.39146702]
[1749938729298,0.93257946,105550.0,105540.0,0.189417]
[1749938729598,1.02732346,105550.0,105540.0,0.189417]
[1749938731395,1.21472346,105550.0,105540.0,0.189417]
[1749938732299,0.1894154,105540.0,105530.0,0.33162825]
[1749938732487,0.76079918,105540.0,105530.0,0.28427115]
[1749938732693,1.2450012,105540.0,105530.0,0.28427115]
[1749938733091,0.85555118,105540.0,105530.0,0.28427115]
[1749938733292,1.04295118,105540.0,105530.0,0.48632117]
[1749938733494,1.2450012,105540.0,105530.0,0.48832117]
[1749938733900,1.2450012,105540.0,105530.0,0.28627115]
[1749938734197,1.2450012,105540.0,105530.0,0.48832117]
[1749938735901,1.12671742,105540.0,105530.0,0.48832117]
[1749938737001,0.76591742,105540.0,105530.0,0.48832117]
[1749938737201,0.85455921,105540.0,105530.0,0.48832117]
[1749938738000,0.18094179,105540.0,105530.0,0.48832117]
[1749938738201,0.33784179,105540.0,105530.0,0.91352117]
[1749938738401,0.52725729,105540.0,105530.0,0.94412117]
[1749938739702,0.52725729,105540.0,105530.0,0.58332117]
[1749938740097,0.52725729,105540.0,105530.0,0.94412117]
[1749938740298,0.49675729,105540.0,105530.0,0.94412117]
[1749938740599,0.08864179,105540.0,105530.0,0.94412117]
[1749938740799,0.46545729,105540.0,105530.0,0.94412117]
[1749938744602,0.66750731,105540.0,105530.0,0.94412117]
[1749938744797,0.66750731,105540.0,105530.0,0.74207115]
[1749938745002,0.66750731,105540.0,105530.0,0.94412117]
[1749938747509,0.66750731,105540.0,105530.0,0.58332117]
[1749938747710,0.57886552,105540.0,105530.0,0.58332117]
[1749938749112,0.57886552,105540.0,105530.0,0.38127115]
[1749938749308,0.93966552,105540.0,105530.0,0.58332117]
[1749938749608,0.97006552,105540.0,105530.0,0.58332117]
[1749938749810,1.0883493,105540.0,105530.0,0.58332117]
[1749938751306,1.0883493,105540.0,105530.0,0.55272117]
[1749938751507,1.1205493,105540.0,105530.0,0.28627115]
[1749938754111,1.00226552,105540.0,105530.0,0.28627115]
[1749938755016,0.8002155,105540.0,105530.0,0.28627115]
[1749938755317,1.00226552,105540.0,105530.0,0.28627115]
[1749938755620,1.1205493,105540.0,105530.0,0.28627115]
[1749938755820,1.00226552,105540.0,105530.0,0.28627115]
[1749938756722,1.1205493,105540.0,105530.0,0.28627115]
[1749938761432,0.9331493,105540.0,105530.0,0.28627115]
[1749938761624,1.9071893,105540.0,105530.0,0.31917115]
[1749938762323,0.9331493,105540.0,105530.0,0.31917115]
[1749938762524,1.4837893,105540.0,105530.0,0.52122117]
[1749938762722,0.5097493,105540.0,105530.0,0.55342117]
[1749938763029,1.28173928,105540.0,105530.0,0.55342117]
[1749938763231,1.28173928,105540.0,105530.0,0.91422117]
[1749938764433,1.4837893,105540.0,105530.0,0.91422117]
[1749938767528,1.28173928,105540.0,105530.0,0.91422117]
[1749938767733,1.4837893,105540.0,105530.0,0.91422117]
[1749938769736,0.11828378,105540.0,105530.0,0.91422117]
[1749938770136,1.6889412,105550.0,105540.0,0.1894155]
[1749938770432,1.48689118,105550.0,105540.0,0.45476552]
[1749938770636,1.54025742,105550.0,105540.0,0.48526552]
[1749938770839,1.65866518,105550.0,105540.0,0.48526552]
[1749938771032,1.65906518,105550.0,105540.0,0.48526552]
[1749938772038,0.38786856,105550.0,105540.0,0.48526552]
[1749938772239,0.74457858,105550.0,105540.0,0.48526552]
[1749938772539,1.53149858,105550.0,105540.0,0.84606552]
[1749938775136,1.32944856,105550.0,105540.0,0.84606552]
[1749938775342,1.48386778,105550.0,105540.0,0.84606552]
[1749938777240,1.48386778,105550.0,105540.0,0.6440155]
[1749938778741,0.50986778,105550.0,105540.0,0.6440155]
[1749938778944,1.48386778,105550.0,105540.0,0.6440155]
[1749938779342,1.51606778,105550.0,105540.0,0.6440155]
[1749938779545,1.51602778,105550.0,105540.0,0.6440155]
[1749938779745,1.51602778,105550.0,105540.0,0.6135155]
[1749938779947,1.54692778,105550.0,105540.0,0.5502155]
[1749938780148,1.90772778,105550.0,105540.0,0.1894155]
[1749938781342,1.90772778,105550.0,105530.0,0.23691985]
[1749938781343,0.1894164,105540.0,105530.0,0.23691985]
[1749938781550,1.13833554,105540.0,105530.0,0.23691985]
[1749938781749,0.93628552,105540.0,105530.0,0.23691985]
[1749938782046,1.1680242,105540.0,105530.0,0.23691985]
[1749938782637,0.96597418,105540.0,105530.0,0.23791985]
[1749938783342,1.1680242,105540.0,105530.0,0.23791985]
[1749938783841,0.96597418,105540.0,105530.0,0.23791985]
[1749938784247,0.60517418,105540.0,105530.0,0.23791985]
[1749938784753,0.96597418,105540.0,105530.0,0.23791985]
[1749938788956,0.76392416,105540.0,105530.0,0.23791985]
[1749938789152,0.96597418,105540.0,105530.0,0.23791985]
[1749938789647,0.60517418,105540.0,105530.0,0.23791985]
[1749938789852,0.96597418,105540.0,105530.0,0.23791985]
[1749938792445,1.93997418,105540.0,105530.0,0.23791985]
[1749938792643,2.1420242,105540.0,105530.0,0.23791985]
[1749938794458,2.02361644,105540.0,105530.0,0.23791985]
[1749938795251,1.6195164,105540.0,105530.0,0.23791985]
[1749938795459,1.82156642,105540.0,105530.0,0.23791985]
[1749938803667,1.93997418,105540.0,105530.0,0.23791985]
[1749938805468,1.57917418,105540.0,105530.0,0.23791985]
[1749938806763,1.93997418,105540.0,105530.0,0.23791985]
[1749938808867,0.37012416,105540.0,105530.0,0.23791985]
[1749938809072,1.28174416,105540.0,105530.0,0.86586987]
[1749938809261,1.48379418,105540.0,105530.0,0.89646987]
[1749938809466,1.36538642,105540.0,105530.0,0.89646987]
[1749938810168,1.48379418,105540.0,105530.0,0.89646987]
[1749938811771,0.69723418,105540.0,105530.0,0.89646987]
[1749938811976,1.48375418,105540.0,105530.0,0.89646987]
[1749938813267,0.30782416,105540.0,105530.0,0.89646987]
[1749938813472,1.48367418,105540.0,105530.0,0.89646987]
[1749938814971,1.36526642,105540.0,105530.0,0.89646987]
[1749938815278,0.1894164,105540.0,105530.0,0.89646987]
[1749938815478,1.36526642,105540.0,105530.0,0.89646987]
[1749938815880,0.39146642,105540.0,105530.0,0.89646987]
[1749938816078,1.36522642,105540.0,105530.0,0.89646987]
[1749938819387,1.36522642,105540.0,105530.0,0.66381985]
[1749938819589,1.45932642,105540.0,105530.0,0.59871985]
[1749938822691,1.45928642,105540.0,105530.0,0.59871985]
[1749938823089,2.02213644,105540.0,105530.0,0.23791985]
[1749938823787,2.1405442,105540.0,105530.0,0.23791985]
[1749938825890,1.93849418,105540.0,105530.0,0.23791985]
[1749938826193,2.1405442,105540.0,105530.0,0.23791985]
[1749938830796,1.93849418,105540.0,105530.0,0.23791985]
[1749938831693,2.1405442,105540.0,105530.0,0.23791985]
[1749938834094,1.93849418,105540.0,105530.0,0.23791985]
[1749938838899,2.1405442,105540.0,105530.0,0.23791985]
[1749938839101,2.1405442,105540.0,105530.0,0.19057695]
[1749938840204,2.9595442,105540.0,105530.0,0.19057695]
[1749938841602,2.5987442,105540.0,105530.0,0.19057695]
[1749938841802,2.9595442,105540.0,105530.0,0.19057695]
[1749938844601,0.1894523,105520.0,105510.0,0.3630559]
[1749938844799,1.45358601,105520.0,105510.0,0.3315559]
[1749938844994,1.51758601,105520.0,105510.0,0.3636559]
[1749938845607,1.55068601,105520.0,105510.0,0.3636559]
[1749938845805,1.55068601,105520.0,105510.0,0.2408225]
[1749938845997,2.14313726,105520.0,105510.0,0.004]
[1749938846302,2.96217726,105520.0,105510.0,0.004]
[1749938846502,2.96207419,105520.0,105510.0,0.008]
[1749938846807,2.84377234,105520.0,105510.0,0.008]
[1749938847008,2.93854834,105520.0,105510.0,0.004]
[1749938847219,2.93854834,105520.0,105490.0,0.1895055]
[1749938847220,0.1894882,105500.0,105490.0,0.1895055]
[1749938847508,0.1895062,105490.0,105480.0,0.3015898]
[1749938847704,0.99571796,105490.0,105480.0,0.3015898]
[1749938848004,0.1895241,105480.0,105470.0,0.3161968]
[1749938848304,1.51262036,105480.0,105470.0,0.3808968]
[1749938848507,1.42396393,105480.0,105470.0,0.3808968]
[1749938848701,1.49853001,105480.0,105470.0,0.3808968]
[1749938848896,1.29647999,105480.0,105470.0,0.3808968]
[1749938849100,1.29647999,105480.0,105470.0,0.301612]
[1749938849101,1.85933001,105480.0,105470.0,0.301612]
[1749938849296,1.95619462,105480.0,105470.0,0.236912]
[1749938849499,1.9868759,105480.0,105470.0,0.236912]
[1749938849901,1.92788481,105480.0,105470.0,0.236912]
[1749938850305,1.74802661,105480.0,105470.0,0.236912]
[1749938850505,1.92788481,105480.0,105470.0,0.236912]
[1749938850704,1.9868335,105480.0,105470.0,0.236912]
[1749938851113,1.99624672,105480.0,105470.0,0.236912]
[1749938851404,1.99624672,105480.0,105470.0,0.1895272]
[1749938851405,1.90959029,105480.0,105470.0,0.1895272]
[1749938851597,0.1895421,105470.0,105460.0,0.37776805]
[1749938852202,0.3694003,105470.0,105460.0,0.29817815]
[1749938852402,0.88344899,105470.0,105460.0,0.26787815]
[1749938852708,1.85680899,105470.0,105460.0,0.26787815]
[1749938853205,1.85680899,105470.0,105460.0,0.23707815]
[1749938853508,0.8245003,105470.0,105460.0,0.23907815]
[1749938853809,1.7979003,105470.0,105460.0,0.23907815]
[1749938854002,1.7979003,105470.0,105460.0,0.24007815]
[1749938858609,1.7979803,105470.0,105460.0,0.24007815]
[1749938859307,1.55984609,105480.0,105470.0,0.189542]
[1749938859506,1.1700974,105480.0,105470.0,0.582542]
[1749938859712,1.13068418,105480.0,105470.0,0.645342]
[1749938860013,1.04808608,105480.0,105470.0,0.645342]
[1749938860206,1.23761008,105480.0,105470.0,0.645342]
[1749938861008,1.41746828,105480.0,105470.0,0.284542]
[1749938861401,1.44906828,105480.0,105470.0,0.284542]
[1749938861607,1.80986828,105480.0,105470.0,0.284542]
[1749938862616,1.81910317,105480.0,105470.0,0.284542]
[1749938864915,0.84558317,105480.0,105470.0,0.284542]
[1749938865119,1.45826317,105480.0,105470.0,0.284542]
[1749938865919,1.42666317,105480.0,105470.0,0.284542]
[1749938867215,1.42656317,105480.0,105470.0,0.284542]
[1749938870825,1.45816317,105480.0,105470.0,0.284542]
[1749938871122,1.63910497,105480.0,105470.0,0.189542]
[1749938871423,1.05714097,105480.0,105470.0,0.550342]
[1749938871625,1.24666487,105480.0,105470.0,0.613742]
[1749938872417,1.30561356,105480.0,105470.0,0.613742]
[1749938874418,1.39426999,105480.0,105470.0,0.613742]
[1749938875425,1.3353213,105480.0,105470.0,0.613742]
[1749938878331,0.1723574,105480.0,105470.0,0.613742]
[1749938878627,1.1455574,105480.0,105470.0,0.613742]
[1749938879026,0.1723574,105480.0,105470.0,0.613742]
[1749938879334,1.1455174,105480.0,105470.0,0.613742]
[1749938879724,1.3350413,105480.0,105470.0,0.613742]
[1749938880225,0.3618813,105480.0,105470.0,0.613742]
[1749938880425,1.3350413,105480.0,105470.0,0.613742]
[1749938882327,0.16312251,105480.0,105470.0,0.7936002]
[1749938882533,0.05917769,105480.0,105470.0,0.93242389]
[1749938882729,0.14797667,105490.0,105480.0,0.1895238]
[1749938882927,0.05932024,105490.0,105480.0,0.88717799]
[1749938883127,0.05932024,105490.0,105480.0,1.07417799]
[1749938883424,0.24882614,105490.0,105480.0,0.8431623]
[1749938883626,0.05932024,105490.0,105480.0,1.0301623]
[1749938884028,0.05932024,105490.0,105480.0,1.0311623]
[1749938884332,0.05932024,105490.0,105480.0,1.0331623]
[1749938885322,0.05932024,105490.0,105480.0,0.3374476]
[1749938885529,1.04764052,105490.0,105480.0,0.1925238]
[1749938885829,0.97114077,105490.0,105480.0,0.1925238]
[1749938888841,0.91196308,105490.0,105480.0,0.1925238]
[1749938889338,0.97109792,105490.0,105480.0,0.1925238]
[1749938889543,0.91196308,105490.0,105480.0,0.1925238]
[1749938889743,0.91196308,105490.0,105480.0,0.003]
[1749938889947,0.91196308,105490.0,105480.0,0.1925237]
[1749938890446,0.89933615,105490.0,105480.0,0.1925237]
[1749938891041,0.89933615,105490.0,105480.0,0.1915237]
[1749938891241,0.89933615,105490.0,105480.0,0.1895237]
[1749938892350,1.01764933,105490.0,105480.0,0.1895237]
[1749938893842,0.83759113,105490.0,105480.0,0.1895237]
[1749938894043,1.01744933,105490.0,105480.0,0.1895237]
[1749938904655,0.1895238,105480.0,105470.0,0.2842914]
[1749938904847,1.07039643,105480.0,105470.0,0.2842914]
[1749938905261,0.981642,105480.0,105470.0,0.2842914]
[1749938905557,1.09995518,105480.0,105470.0,0.1895276]
[1749938905753,0.981642,105480.0,105470.0,0.1905276]
[1749938905953,1.09995518,105480.0,105470.0,0.1905276]
[1749938906867,1.09995518,105480.0,105470.0,0.1925276]
[1749938907259,0.981642,105480.0,105470.0,0.1925276]
[1749938907459,1.88579518,105480.0,105470.0,0.1905276]
[1749938908962,1.88579518,105480.0,105470.0,0.1895276]
[1749938910264,1.767482,105480.0,105470.0,0.1895276]
[1749938911064,1.88579518,105480.0,105470.0,0.1895276]
[1749938912464,1.767482,105480.0,105470.0,0.1895276]
[1749938913468,1.88579518,105480.0,105470.0,0.1895276]
[1749938913663,1.767482,105480.0,105470.0,0.1895276]
[1749938915266,1.88579518,105480.0,105470.0,0.1895276]
[1749938915469,0.3608,105480.0,105470.0,0.1895276]
[1749938915774,1.61165854,105480.0,105470.0,0.2821276]
[1749938917269,0.63909854,105480.0,105470.0,0.2821276]
[1749938917673,1.61161854,105480.0,105470.0,0.2821276]
[1749938918472,0.08877464,105480.0,105470.0,0.8227858]